bitfinex/quotes_ETHUSD_20251031
["timestamp","ask_amount","ask_price","bid_price","bid_amount"]
[1761915540111,36.14697145,3845.7,3845.6,0.002]
[1761915540816,37.06753605,3845.7,3845.6,0.002]
[1761915541119,42.62083668,3845.7,3845.6,0.002]
[1761915541300,35.99442552,3845.7,3845.6,0.002]
[1761915541501,20.36364845,3845.7,3845.6,0.002]
[1761915541703,10.04691324,3845.7,3845.6,0.002]
[1761915542022,5.91608824,3845.7,3845.6,0.002]
[1761915542324,11.00867324,3845.7,3845.6,0.002]
[1761915542525,1.13639586,3845.7,3845.6,0.002]
[1761915542701,0.03250383,3845.7,3845.6,0.4981]
[1761915542905,0.405504,3845.7,3845.6,0.002]
[1761915543224,0.55353403,3846.0,3845.6,0.4981]
[1761915543428,0.405504,3845.9,3845.6,0.4981]
[1761915543725,0.03250214,3845.9,3845.6,0.4981]
[1761915544224,2.30612,3846.1,3845.6,0.23384335]
[1761915544428,0.405504,3845.9,3845.6,0.002]
[1761915544608,0.58603448,3846.1,3845.6,0.002]
[1761915544807,0.03250045,3846.1,3845.8,0.4961]
[1761915545022,0.1296,3845.8,3845.6,0.002]
[1761915545223,0.405504,3845.9,3845.6,0.002]
[1761915546593,0.4982,3845.7,3845.6,0.002]
[1761915546799,0.4982,3845.7,3845.6,0.18423554]
[1761915547102,0.4982,3845.7,3845.6,0.002]
[1761915547302,0.188,3845.9,3845.6,0.002]
[1761915548727,0.405504,3846.0,3845.6,0.002]
[1761915549029,0.901604,3846.0,3845.6,0.002]
[1761915549535,0.405504,3846.1,3845.6,0.002]
[1761915549733,0.405504,3846.1,3845.6,1.82222052]
[1761915549921,0.405504,3846.0,3845.7,0.22927205]
[1761915550110,0.1296,3845.7,3845.6,0.002]
[1761915550510,0.1296,3845.7,3845.6,0.4687]
[1761915551129,0.1296,3845.7,3845.6,0.002]
[1761915552334,0.1296,3845.7,3845.6,0.9392]
[1761915552638,0.1296,3845.7,3845.6,2.75946211]
[1761915553003,0.1296,3845.7,3845.6,3.21744141]
[1761915555018,0.1296,3845.7,3845.6,2.74694141]
[1761915555337,0.001,3846.2,3845.6,2.74694141]
[1761915555338,0.405504,3846.1,3845.6,0.9266793]
[1761915555667,0.405504,3845.9,3845.6,0.4687]
[1761915555849,0.405504,3845.9,3845.6,0.002]
[1761915555850,0.4982,3845.7,3845.6,0.002]
[1761915556139,0.405504,3846.0,3845.6,0.002]
[1761915556436,0.4982,3845.7,3845.6,0.002]
[1761915557012,0.9943,3845.7,3845.6,0.002]
[1761915557219,1.399804,3845.7,3845.6,0.002]
[1761915557725,0.903704,3845.7,3845.6,0.002]
[1761915558947,1.399804,3845.7,3845.6,0.002]
[1761915560539,1.399004,3845.7,3845.6,0.002]
[1761915562227,1.386104,3845.7,3845.6,0.002]
[1761915563554,0.902904,3845.7,3845.6,0.002]
[1761915564331,0.405504,3845.7,3845.6,0.4781]
[1761915564861,0.889204,3845.7,3845.6,0.002]
[1761915566177,27.18604463,3845.7,3845.6,0.002]
[1761915566463,26.82155991,3845.7,3845.6,0.002]
[1761915566774,28.53427772,3845.7,3845.6,0.002]
[1761915566929,27.15418902,3845.7,3845.6,0.002]
[1761915567131,36.29536702,3845.7,3845.6,0.002]
[1761915568530,33.68882402,3845.7,3845.6,0.002]
[1761915568735,33.03138568,3845.7,3845.6,0.002]
[1761915569245,28.11010668,3845.7,3845.6,0.002]
[1761915569431,27.46881068,3845.7,3845.6,0.002]
[1761915569635,14.89767742,3845.7,3845.6,0.002]
[1761915569833,15.24749265,3845.7,3845.6,0.002]
[1761915570065,15.65554875,3845.7,3845.6,0.002]
[1761915570273,23.03548375,3845.7,3845.6,0.002]
[1761915570561,23.36029298,3845.7,3845.6,0.002]
[1761915570967,23.36129298,3845.7,3845.6,0.002]
[1761915571165,36.77967898,3845.7,3845.6,0.002]
[1761915571370,33.62558812,3845.3,3845.2,0.002]
[1761915571540,40.29019359,3845.3,3845.2,0.002]
[1761915571746,41.67897213,3845.3,3845.2,0.002]
[1761915572132,40.75979359,3845.3,3845.2,0.002]
[1761915573085,40.75979359,3845.3,3844.1,0.01]
[1761915573086,5.89283018,3844.2,3844.1,0.01]
[1761915573249,8.1953552,3844.2,3844.1,0.01]
[1761915573453,10.23611408,3844.2,3844.1,0.01]
[1761915573663,8.41518906,3844.2,3844.1,0.01]
[1761915573867,10.23611408,3844.2,3844.1,0.01]
[1761915574387,9.68509036,3844.2,3844.1,0.01]
[1761915574673,9.68509036,3844.2,3843.1,0.4602]
[1761915574674,30.0,3844.1,3843.1,0.01]
[1761915574835,8.38312901,3843.2,3843.1,0.01]
[1761915575279,1.82154102,3842.9,3842.1,0.013]
[1761915575437,17.88361682,3842.7,3842.1,0.013]
[1761915575632,29.02468977,3842.7,3842.1,0.013]
[1761915575837,29.49428977,3842.7,3842.1,0.013]
[1761915576067,18.5726877,3842.7,3842.1,0.013]
[1761915576675,22.0133737,3842.7,3842.1,0.013]
[1761915577640,6.1480147,3842.7,3842.1,0.013]
[1761915577942,22.6821957,3842.7,3842.1,0.013]
[1761915578137,22.13233598,3842.7,3842.1,0.013]
[1761915578560,22.67992089,3842.7,3842.1,0.013]
[1761915578766,36.14573989,3842.7,3842.1,0.013]
[1761915579164,33.77651916,3842.7,3842.1,0.013]
[1761915579366,35.59815498,3842.7,3842.1,0.013]
[1761915579957,36.00636622,3842.7,3842.1,0.013]
[1761915580279,35.59815498,3842.7,3842.1,0.013]
[1761915580477,36.00645495,3842.7,3842.1,0.013]
[1761915580952,36.35627018,3842.7,3842.1,0.013]
[1761915581151,36.90292547,3842.7,3842.1,0.013]
[1761915581570,37.2277347,3842.7,3842.1,0.013]
[1761915582482,36.90292547,3842.7,3842.1,0.013]
[1761915583147,37.2277347,3842.7,3842.1,0.013]
[1761915583347,37.63598213,3842.7,3842.1,0.013]
[1761915583945,37.3111729,3842.7,3842.1,0.013]
[1761915585686,37.63598213,3842.7,3842.1,0.013]
[1761915585862,37.63518213,3842.7,3842.1,0.013]
[1761915586485,17.50204508,3842.7,3842.1,0.013]
[1761915586653,6.11224225,3842.7,3842.1,0.1573]
[1761915586982,12.315628,3842.7,3842.1,0.1573]
[1761915587184,3.324422,3842.8,3842.1,0.1573]
[1761915587343,3.27613421,3842.7,3842.1,0.1573]
[1761915587550,4.67581421,3842.7,3842.1,0.1573]
[1761915587852,6.20349321,3842.7,3842.1,0.1573]
[1761915588184,8.47629982,3842.7,3842.1,0.1573]
[1761915588983,12.538504,3842.7,3842.6,0.005]
[1761915589860,1.805184,3842.7,3842.6,0.005]
[1761915590055,3.86404069,3842.7,3842.6,0.4641]
[1761915590494,5.68567651,3842.7,3842.6,0.005]
[1761915590794,5.49651448,3842.7,3842.6,0.005]
[1761915590984,11.70360748,3842.7,3842.6,0.005]
[1761915591903,11.54084148,3842.7,3842.6,0.005]
[1761915592256,10.29451639,3842.7,3842.6,0.005]
[1761915592457,0.81367248,3842.7,3842.6,0.4641]
[1761915592658,0.40816848,3842.7,3842.6,0.9182]
[1761915593803,0.43802982,3843.1,3842.6,0.9182]
[1761915593975,0.43802982,3843.1,3843.0,0.4591]
[1761915594175,3.92553082,3843.1,3843.0,0.4591]
[1761915594494,2.38509828,3843.1,3843.0,0.4591]
[1761915594793,6.35285528,3843.1,3843.0,0.4591]
[1761915594992,8.14177568,3843.1,3843.0,0.4591]
[1761915595192,6.32032946,3843.1,3843.0,0.4591]
[1761915595394,5.43253346,3843.1,3843.0,0.4591]
[1761915595596,2.35257246,3843.1,3843.0,0.4591]
[1761915595897,4.96213346,3843.1,3843.0,0.4591]
[1761915596098,6.8161055,3843.1,3843.0,0.4591]
[1761915596301,4.96213346,3843.1,3843.0,0.4591]
[1761915596677,4.99465928,3843.1,3843.0,0.4591]
[1761915596871,2.38509828,3843.1,3843.0,0.4591]
[1761915597089,5.32458128,3843.1,3843.0,0.4591]
[1761915597290,5.29205546,3843.1,3843.0,0.4591]
[1761915597689,2.35257246,3843.1,3843.0,0.9132]
[1761915597886,1.805184,3843.1,3843.0,0.9132]
[1761915598288,2.35257246,3843.1,3843.0,0.9132]
[1761915598493,0.405504,3843.1,3843.0,0.9132]
[1761915598683,0.405504,3843.2,3843.0,0.9132]
[1761915598885,0.405504,3843.2,3843.1,1.0567]
[1761915599100,0.405504,3843.5,3843.1,1.0567]
[1761915599301,0.54738846,3843.4,3843.2,0.4541]
[1761915599698,0.95289246,3843.4,3843.3,0.4591]
[1761915600111,0.405504,3843.4,3843.3,0.9132]
[1761915600308,0.95289246,3843.4,3843.3,0.9132]
[1761915600513,2.35257246,3843.4,3843.3,0.4591]
[1761915600740,0.95289246,3843.4,3843.3,0.4591]
[1761915601015,0.95289246,3843.4,3843.3,2.73455144]
[1761915601016,0.405504,3843.4,3843.3,2.73455144]
[1761915601192,0.54738846,3843.8,3843.3,1.20100514]
[1761915601395,0.54738846,3843.7,3843.4,0.4541]
[1761915601596,0.54738846,3843.8,3843.4,0.4541]
[1761915601803,0.54738846,3843.8,3843.4,2.27538814]
[1761915602116,0.405504,3843.7,3843.4,2.27539569]
[1761915602316,0.95289246,3843.6,3843.5,0.4541]
[1761915602511,0.1296,3843.4,3843.1,2.41903269]
[1761915602712,0.1296,3843.4,3843.2,1.82138969]
[1761915602914,0.405504,3843.6,3843.5,1.82125666]
[1761915603114,0.405504,3843.6,3843.1,0.56756133]
[1761915603314,0.95289246,3843.8,3843.5,0.4591]
[1761915603504,0.405504,3843.6,3843.1,0.1435]
[1761915603683,0.1296,3843.3,3843.1,0.1435]
[1761915604014,0.95289246,3843.8,3843.5,0.4591]
[1761915604318,0.54738846,3843.7,3843.5,1.82125195]
[1761915604521,0.54738846,3844.0,3843.7,1.82111462]
[1761915604824,0.1296,3843.7,3843.6,2.27530928]
[1761915605418,0.1296,3843.7,3843.6,2.73440928]
[1761915605601,0.1296,3843.7,3843.6,3.24538544]
[1761915605791,0.1296,3843.7,3843.6,1.42417616]
[1761915605997,0.1296,3843.7,3843.6,2.73440928]
[1761915606817,0.535104,3843.7,3843.6,0.4591]
[1761915607830,0.405504,3843.6,3843.2,0.1444]
[1761915608123,0.405504,3843.7,3843.2,0.1444]
[1761915608328,0.03252159,3843.6,3843.2,0.1444]
[1761915608691,0.03252159,3843.6,3843.5,0.4591]
[1761915608890,0.03252074,3843.7,3843.5,0.4591]
[1761915609199,0.1944,3843.9,3843.6,0.4591]
[1761915609200,0.55091985,3843.9,3843.6,0.4591]
[1761915609398,0.001,3843.9,3843.8,0.4591]
[1761915610889,0.534304,3843.8,3843.2,0.1444]
[1761915611094,0.1296,3843.4,3843.2,0.1444]
[1761915611292,6.37,3843.7,3843.2,0.1444]
[1761915611489,0.1296,3843.2,3843.1,0.1435]
[1761915611687,0.1296,3843.2,3843.1,0.6026]
[1761915612104,0.1296,3843.2,3843.1,2.87814622]
[1761915612840,0.54931083,3843.6,3843.1,0.6026]
[1761915612841,0.03252159,3843.6,3843.1,0.6026]
[1761915613138,0.535104,3843.1,3842.4,0.4541]
[1761915613344,0.405504,3843.1,3842.5,1.82172986]
[1761915613645,0.405504,3843.2,3843.0,0.4591]
[1761915613817,0.405504,3843.2,3843.1,0.6026]
[1761915614022,0.405504,3843.4,3843.1,0.6026]
[1761915614218,0.405504,3843.4,3843.1,0.1435]
[1761915614420,0.405504,3843.5,3843.3,0.4591]
[1761915614742,0.405504,3843.5,3843.1,0.1435]
[1761915614928,0.1296,3843.2,3843.1,0.5976]
[1761915615429,0.1296,3843.2,3843.1,1.0567]
[1761915615778,0.405504,3843.6,3843.1,1.34451528]
[1761915615944,0.405504,3843.6,3843.5,0.4591]
[1761915616316,0.95547289,3843.6,3843.5,0.4591]
[1761915616511,0.95547289,3843.6,3843.5,0.9132]
[1761915616931,0.405504,3843.6,3843.5,0.9132]
[1761915617135,0.9555097,3843.6,3843.5,0.9132]
[1761915617338,0.405504,3843.6,3843.5,0.9132]
[1761915617842,0.405504,3843.6,3843.1,0.1435]
[1761915617843,0.1296,3843.5,3843.1,0.1435]
[1761915618047,0.03252328,3843.4,3843.1,0.1435]
[1761915618243,0.03252244,3843.5,3843.1,0.1435]
[1761915618816,0.405504,3843.1,3842.6,0.005]
[1761915619144,0.405504,3843.1,3842.7,1.82158962]
[1761915619336,0.405504,3843.2,3842.7,1.82158962]
[1761915619940,0.1296,3842.7,3842.6,0.005]
[1761915620349,0.1296,3842.7,3842.6,0.5016]
[1761915620522,0.1296,3842.7,3842.6,0.9805]
[1761915620848,0.1296,3842.7,3842.6,3.08241431]
[1761915622124,6.37,3843.2,3843.1,1.82144622]
[1761915622320,6.37,3843.2,3843.1,2.46154622]
[1761915622664,6.37,3843.2,3843.1,2.94044622]
[1761915625962,0.1296,3843.3,3843.2,1.82139883]
[1761915626274,0.1296,3843.3,3843.2,3.27308334]
[1761915628258,0.001,3843.8,3843.7,1.8211619]
[1761915628577,0.001,3843.8,3843.7,2.3177619]
[1761915628743,0.001,3843.8,3843.7,2.7966619]
[1761915632853,0.001,3843.8,3843.7,10.36031668]
[1761915633039,0.001,3843.8,3843.7,5.41449664]
[1761915633790,0.001,3843.8,3843.7,4.1963419]
[1761915634740,0.001,3843.8,3843.7,2.7966619]
[1761915636156,0.0002,3843.8,3843.7,2.7966619]
[1761915641591,0.001,3846.3,3845.6,1.82026211]
[1761915641754,0.4655,3846.3,3845.6,2.31686211]
[1761915641956,0.406504,3846.2,3845.6,2.31686211]
[1761915643722,0.1296,3845.8,3845.6,2.31686211]
[1761915644078,0.1296,3845.8,3845.6,2.79576211]
[1761915644277,0.1296,3845.8,3845.6,3.27181138]
[1761915645413,0.001,3846.2,3845.6,3.27181138]
[1761915645613,0.1306,3846.1,3845.6,3.27181138]
[1761915646810,0.001,3846.1,3846.0,1.8200728]
[1761915648001,0.4627,3846.1,3846.0,1.8200728]
[1761915648394,0.001,3846.1,3846.0,1.8200728]
[1761915648711,0.4627,3846.1,3845.6,0.47604927]
[1761915649014,0.6549,3845.7,3845.6,1.82026211]
[1761915649311,0.6549,3845.7,3845.0,0.1444]
[1761915649312,0.6549,3845.7,3845.5,1.82026829]
[1761915649483,0.001,3846.1,3845.1,0.4789]
[1761915649685,0.406504,3846.1,3845.7,1.82016915]
[1761915650078,0.4738,3845.8,3845.7,1.82016915]
[1761915650297,0.4738,3845.8,3845.6,1.8202257]
[1761915650682,0.7122,3845.7,3845.6,1.8202257]
[1761915650883,0.71089919,3845.7,3845.2,0.24438483]
[1761915651082,0.4738,3845.3,3845.2,1.82045147]
[1761915651285,0.4738,3845.3,3844.6,0.1457]
[1761915651501,0.9505,3845.3,3845.1,1.82045405]
[1761915651908,0.1997,3845.9,3845.1,1.82045405]
[1761915651909,0.7109,3845.2,3845.1,1.82045405]
[1761915652494,0.405504,3845.5,3845.3,1.82035889]
[1761915652823,0.405504,3845.8,3845.4,1.82031596]
[1761915652987,0.405504,3845.8,3845.1,2.31455405]
[1761915652988,0.405504,3845.8,3845.1,0.4941]
[1761915653188,0.405504,3845.8,3845.5,1.8202852]
[1761915653590,0.001,3846.1,3845.7,1.82017953]
[1761915653890,0.001,3846.1,3844.9,1.82055101]
[1761915653891,0.405504,3846.0,3845.3,1.82038738]
[1761915654209,0.405504,3846.0,3845.1,0.489]
[1761915654404,0.405504,3846.0,3845.6,1.82021994]
[1761915654587,0.405504,3846.0,3845.7,1.82018321]
[1761915654790,0.405504,3846.0,3845.2,0.23095037]
[1761915655011,0.405504,3846.0,3845.7,1.82017275]
[1761915655392,0.4738,3845.8,3845.2,0.23095037]
[1761915655586,0.4738,3845.8,3845.6,1.82022177]
[1761915655786,0.4738,3845.8,3845.7,1.82021478]
[1761915656518,0.001,3846.1,3845.8,1.82016745]
[1761915656717,0.4767,3846.0,3845.0,1.82053882]
[1761915656917,0.4767,3846.0,3845.7,1.82020614]
[1761915657097,0.4738,3845.8,3845.7,1.82020614]
[1761915658523,0.001,3846.1,3845.7,1.82020614]
[1761915658818,0.1296,3845.9,3845.8,1.82016745]
[1761915659603,0.6034,3845.9,3845.8,1.82016745]
[1761915660423,0.1296,3845.9,3845.8,1.82016745]
[1761915661124,0.1296,3845.9,3845.8,2.67830481]
[1761915661626,0.1288,3845.9,3845.8,2.18420481]
[1761915663324,0.1288,3845.9,3845.8,1.82016745]
[1761915664223,0.1288,3845.9,3845.8,2.31426745]
[1761915665211,0.001,3846.1,3846.0,1.8200728]
[1761915665407,0.1306,3846.1,3846.0,2.3141728]
[1761915667931,0.1306,3846.1,3846.0,1.8200728]
[1761915668229,0.1306,3846.1,3846.0,2.2836728]
[1761915670400,0.1306,3846.1,3846.0,2.69405683]
[1761915670910,0.001,3846.3,3846.2,1.81997816]
[1761915671100,0.001,3846.3,3846.2,2.74377816]
[1761915673244,0.001,3846.3,3846.2,4.27305816]
[1761915674245,0.0102,3846.7,3846.6,1.8197889]
[1761915674449,0.0102,3846.7,3846.6,4.13461579]
[1761915674656,0.0102,3846.7,3846.6,4.59481579]
[1761915677730,1e-08,3846.7,3846.6,4.59481579]
[1761915679265,1e-08,3846.7,3846.6,4.46521579]
[1761915683965,1e-08,3846.7,3846.6,4.45721579]
[1761915685475,1e-08,3846.7,3846.6,4.00501579]
[1761915685961,0.49020001,3846.7,3846.6,2.14173579]
[1761915686160,1e-08,3846.7,3846.6,2.62243579]
[1761915686673,0.45580001,3847.1,3847.0,1.81959968]
[1761915687201,0.94600001,3847.1,3847.0,1.81959968]
[1761915690686,0.49040001,3847.1,3847.0,1.81959968]
[1761915691919,0.94600001,3847.1,3847.0,1.81959968]
[1761915697942,0.00020001,3847.1,3847.0,1.81959968]
[1761915698140,0.00020001,3847.1,3847.0,2.30029968]
[1761915698310,0.00020001,3847.1,3847.0,1.81959968]
[1761915698637,0.94600001,3847.1,3847.0,1.81959968]
[1761915699030,0.49040001,3847.1,3847.0,1.81959968]
[1761915699234,0.00020001,3847.1,3847.0,1.81959968]
[1761915699910,0.00020001,3847.1,3847.0,2.30029968]
[1761915700105,0.00020001,3847.1,3847.0,2.85226444]
[1761915700311,0.49040001,3847.1,3847.0,2.37156444]
[1761915700520,0.49040001,3847.1,3847.0,1.81959968]
[1761915701434,0.49040001,3847.1,3847.0,1.82159968]
[1761915704024,0.44040001,3847.1,3847.0,1.82159968]
[1761915707461,0.1306,3847.2,3847.1,1.81955239]
[1761915707961,0.6208,3847.2,3847.1,1.81955239]
[1761915708561,1.0764,3847.2,3847.1,1.81955239]
[1761915709869,0.001,3847.5,3847.1,6.70865713]
[1761915710072,0.001,3847.5,3847.4,2.30911051]
[1761915710378,1e-08,3847.7,3847.6,3.70869593]
[1761915710544,1e-08,3847.7,3847.6,9.19180306]
[1761915710751,1e-08,3847.7,3847.6,10.93280969]
[1761915711432,1e-08,3847.7,3847.6,10.46890969]
[1761915711639,1e-08,3847.7,3847.6,10.93280969]
[1761915711836,0.00020001,3847.9,3847.8,2.30892137]
[1761915712261,0.00020001,3847.9,3847.8,2.43852137]
[1761915712571,0.00020001,3847.9,3847.8,5.2953408]
[1761915713256,0.00020001,3847.9,3847.8,5.7592408]
[1761915717043,0.00020001,3847.9,3847.8,3.4059608]
[1761915717044,1.15080001,3847.9,3847.8,3.4059608]
[1761915717287,1.15080001,3847.9,3847.8,1.81922137]
[1761915717496,0.49110001,3847.9,3847.8,1.81922137]
[1761915717980,0.00020001,3847.9,3847.8,1.81922137]
[1761915718181,0.97520001,3847.9,3847.8,1.81922137]
[1761915718382,0.49110001,3847.9,3847.8,1.81922137]
[1761915718687,0.49110001,3847.9,3847.8,4.27103381]
[1761915719202,0.00020001,3847.9,3847.8,4.27103381]
[1761915719511,0.00020001,3847.9,3847.8,4.76073381]
[1761915720511,0.00020001,3847.9,3847.8,4.27103381]
[1761915720894,0.49110001,3847.9,3847.8,4.27103381]
[1761915721228,1.15080001,3847.9,3847.8,1.81922137]
[1761915724506,1.10080001,3847.9,3847.8,1.81922137]
[1761915724709,0.405504,3847.8,3847.0,0.002]
[1761915725016,0.4909,3847.1,3847.0,1.82159968]
[1761915725196,0.4909,3847.1,3847.0,4.28812047]
[1761915728205,1.380504,3847.1,3847.0,0.002]
[1761915729375,0.4841,3847.7,3847.3,1.81944134]
[1761915729574,0.4909,3847.4,3847.0,0.002]
[1761915729813,0.1415,3847.1,3847.0,0.002]
[1761915730303,0.6256,3847.1,3847.0,1.82159968]
[1761915731605,0.6256,3847.1,3847.0,0.002]
[1761915732924,0.6256,3847.1,3847.0,1.82159968]
[1761915733084,0.6256,3847.1,3847.0,0.002]
[1761915734247,1.031104,3847.1,3847.0,0.002]
[1761915734385,1.17801383,3847.1,3847.0,0.002]
[1761915734730,8.23723733,3847.1,3847.0,0.002]
[1761915737032,8.23643733,3847.1,3847.0,0.002]
[1761915739224,1.39583932,3847.1,3847.0,0.002]
[1761915739424,1.062796,3847.1,3847.0,0.002]
[1761915739926,0.657292,3847.1,3847.0,0.002]
[1761915740144,7.35098018,3847.1,3847.0,0.002]
[1761915740288,7.72399218,3847.1,3847.0,0.002]
[1761915740483,8.75649423,3847.1,3847.0,0.002]
[1761915742393,2.06280605,3847.1,3847.0,0.002]
[1761915742593,1.062796,3847.1,3847.0,0.002]
[1761915742793,2.88234839,3847.1,3847.0,0.002]
[1761915743096,1.062796,3847.1,3847.0,0.002]
[1761915743929,2.88234839,3847.1,3847.0,0.002]
[1761915744487,1.062796,3847.1,3847.0,0.002]
[1761915744691,0.546204,3847.1,3847.0,0.002]
[1761915747235,0.1407,3847.1,3847.0,0.002]
[1761915747952,0.405504,3847.2,3847.0,0.002]
[1761915748575,1.39968,3847.8,3847.0,0.002]
[1761915748576,6.5466,3847.9,3847.1,0.4967]
[1761915748738,0.03248609,3847.8,3847.2,0.4967]
[1761915749057,0.405504,3847.7,3847.2,0.4967]
[1761915749429,0.868404,3847.7,3847.2,0.4967]
[1761915750559,0.868404,3847.7,3847.2,2.31619904]
[1761915750926,0.868404,3847.7,3847.2,0.4967]
[1761915751154,0.1296,3847.2,3847.0,1.82159646]
[1761915751500,0.1296,3847.2,3847.1,0.74355965]
[1761915751685,0.405504,3847.5,3847.1,2.56309321]
[1761915752256,0.4629,3847.5,3847.1,0.74355965]
[1761915752476,0.001,3847.2,3847.1,0.74355965]
[1761915752993,0.001,3847.2,3847.1,2.56311204]
[1761915754192,0.1306,3847.2,3847.1,2.56311204]
[1761915754688,0.1306,3847.2,3847.1,0.74355965]
[1761915755091,0.1306,3847.2,3847.1,2.56311204]
[1761915755396,0.1306,3847.2,3847.1,0.74355965]
[1761915756253,0.405504,3847.1,3847.0,0.002]
[1761915756459,1.057396,3847.1,3847.0,0.002]
[1761915757291,0.001,3847.2,3847.1,1.81955239]
[1761915757479,0.001,3847.2,3847.1,0.4967]
[1761915757883,0.1296,3847.1,3847.0,0.002]
[1761915758094,0.1296,3847.1,3847.0,0.68968768]
[1761915758403,0.1296,3847.1,3847.0,1.18638768]
[1761915759107,0.1296,3847.1,3847.0,3.00598736]
[1761915759301,0.1296,3847.1,3847.0,3.47188736]
[1761915759903,0.1296,3847.1,3847.0,3.00598736]
[1761915762323,0.1288,3847.1,3847.0,1.18638768]
[1761915762520,0.1288,3847.1,3847.0,0.4987]
[1761915762904,0.1288,3847.1,3847.0,2.31829968]
[1761915763724,0.1288,3847.1,3847.0,2.78419968]
[1761915763930,0.1288,3847.1,3847.0,2.31829968]
[1761915766606,0.1288,3847.1,3847.0,0.4987]
[1761915766809,0.625,3847.1,3847.0,0.002]
[1761915767009,1.0879,3847.1,3847.0,0.002]
[1761915767596,0.625,3847.1,3847.0,0.002]
[1761915768443,1.0879,3847.1,3847.0,0.002]
[1761915769250,0.625,3847.1,3847.0,1.82159968]
[1761915769451,0.625,3847.1,3847.0,0.002]
[1761915769807,0.1288,3847.1,3847.0,0.002]
[1761915770027,0.1288,3847.1,3847.0,1.82159968]
[1761915770205,0.1288,3847.1,3847.0,2.29489968]
[1761915773235,0.1288,3847.1,3847.0,3.241618]
[1761915774549,0.1288,3847.1,3847.0,2.755018]
[1761915774755,0.001,3847.2,3847.1,1.81955239]
[1761915775061,0.001,3847.2,3847.1,7.84688818]
[1761915779874,0.001,3847.2,3847.1,9.24656818]
[1761915780162,0.001,3847.2,3847.1,10.4123568]
[1761915781761,0.001,3847.2,3847.1,5.66782101]
[1761915781960,0.001,3847.2,3847.1,5.05162101]
[1761915782271,0.001,3847.2,3847.1,3.65194101]
[1761915782441,0.001,3847.2,3847.1,3.45864101]
[1761915784867,0.4805,3847.2,3847.1,2.98534101]
[1761915785173,0.4805,3847.2,3847.1,1.81955239]
[1761915785871,0.4805,3847.2,3847.0,1.40168]
[1761915785872,0.9315,3847.2,3847.0,0.002]
[1761915786070,0.1683,3847.1,3847.0,1.82159968]
[1761915786274,0.6193,3847.1,3847.0,1.82159968]
[1761915786473,0.6193,3847.1,3847.0,0.002]
[1761915787440,0.6185,3847.1,3847.0,0.002]
[1761915791054,1.024004,3847.1,3847.0,0.002]
[1761915791252,1.6171671,3847.1,3847.0,0.002]
[1761915793582,9.57265179,3847.1,3847.0,0.002]
[1761915793797,21.75383379,3847.1,3847.0,0.002]
[1761915794088,16.33520811,3847.1,3847.0,0.002]
[1761915794455,13.88701911,3847.1,3847.0,0.002]
[1761915794644,3.93179472,3847.1,3847.0,0.002]
[1761915794845,5.41830379,3847.1,3847.0,0.002]
[1761915795173,5.38581179,3847.1,3847.0,0.002]
[1761915795963,3.21933048,3846.9,3845.3,1.88628]
[1761915796318,0.882004,3846.7,3846.1,1.82002504]
[1761915796485,0.405504,3846.5,3845.4,2.30695678]
[1761915796647,0.03249623,3846.6,3845.6,5.94375464]
[1761915796648,0.405504,3846.6,3845.6,5.94375464]
[1761915796991,0.1706,3846.8,3845.6,5.94375464]
[1761915797284,0.405504,3846.7,3846.4,1.81988262]
[1761915797616,0.405504,3846.7,3846.4,1.81984166]
[1761915797928,0.1706,3846.8,3846.1,0.1459]
[1761915798219,0.405504,3847.0,3846.6,1.81978135]
[1761915798389,0.03249369,3846.9,3846.3,1.81993084]
[1761915798917,0.43799685,3847.0,3846.1,0.1459]
[1761915799215,0.43799685,3847.0,3846.6,1.8197889]
[1761915799629,0.88899685,3847.0,3846.2,0.4866]
[1761915799784,0.001,3847.2,3847.1,1.81955239]
[1761915799984,0.001,3847.2,3846.6,1.39968]
[1761915800306,0.001,3847.2,3846.3,1.86518]
[1761915800483,0.4535,3847.2,3846.3,1.86518]
[1761915800688,0.4535,3847.2,3846.9,1.81964213]
[1761915801096,0.4641,3847.0,3846.9,1.81964213]
[1761915802382,0.001,3847.2,3847.1,1.81955239]
[1761915802729,0.001,3847.2,3847.1,2.27645239]
[1761915803528,0.001,3847.2,3847.1,1.81955239]
[1761915804218,0.4659,3847.2,3846.6,0.4595]
[1761915804388,0.4659,3847.2,3847.1,1.81955239]
[1761915805084,0.001,3847.2,3847.1,2.27645239]
[1761915805393,0.001,3847.2,3847.1,2.92725239]
[1761915805824,0.1306,3847.2,3847.1,2.92725239]
[1761915806688,0.001,3847.2,3847.1,2.92725239]
[1761915806981,0.001,3847.2,3847.1,4.00927632]
[1761915812644,0.0002,3847.2,3847.1,4.00927632]
[1761915813824,0.1306,3847.6,3847.5,1.81936322]
[1761915813825,0.001,3847.6,3847.5,1.81936322]
[1761915814129,0.001,3847.6,3847.5,9.61969786]
[1761915814320,0.001,3847.6,3847.5,10.07719786]
[1761915814528,0.001,3847.6,3847.5,11.2798209]
[1761915819515,0.001,3847.6,3847.5,10.8223209]
[1761915819715,0.001,3847.6,3847.5,11.2798209]
[1761915823528,0.001,3847.6,3847.5,10.8223209]
[1761915823759,0.001,3847.6,3847.5,4.87856626]
[1761915823967,0.001,3847.6,3847.5,10.8223209]
[1761915824961,0.9141,3847.6,3847.5,1.81936322]
[1761915828670,0.4216,3847.6,3847.5,1.81936322]
[1761915830369,0.9191,3847.6,3847.5,1.81936322]
[1761915832137,0.405504,3847.5,3846.2,5.94575464]
[1761915832361,0.17890987,3847.4,3847.2,1.81950228]
[1761915832860,0.9931,3847.3,3847.2,1.81950228]
[1761915833073,0.4956,3847.3,3847.2,1.81950228]
[1761915833392,0.001,3847.6,3847.5,1.81936322]
[1761915833927,0.9941,3847.6,3847.5,1.81936322]
[1761915837548,0.4966,3847.6,3847.5,1.81936322]